[Event "Early-Titled-Tuesday-Blitz-May-28-2024"]
[Site "Chess.com"]
[Date "2024.05.28"]
[Round "1"]
[White "GlavkonVVS"]
[Black "Javylavilla"]
[Result "0-1"]
[WhiteElo "2596"]
[BlackElo "2319"]
[TimeControl "180+1"]
[EndTime "8:07:10 PDT"]
[Termination "Javylavilla won by resignation"]

1. c4 {[%clk 0:03:00.9]} 1... Nf6 {[%clk 0:02:59.4]} 2. Nc3 {[%clk 0:02:58.4]}
2... e6 {[%clk 0:02:59.4]} 3. g3 {[%clk 0:02:58.5]} 3... d5 {[%clk 0:02:59.1]}
4. Bg2 {[%clk 0:02:58.8]} 4... Be7 {[%clk 0:02:52.4]} 5. Nf3 {[%clk 0:02:48.2]}
5... O-O {[%clk 0:02:51.8]} 6. O-O {[%clk 0:02:47.8]} 6... c5 {[%clk 0:02:51.4]}
7. d3 {[%clk 0:02:46.7]} 7... Nc6 {[%clk 0:02:50.7]} 8. e4 {[%clk 0:02:45.9]}
8... d4 {[%clk 0:02:40.7]} 9. Ne2 {[%clk 0:02:45.6]} 9... e5 {[%clk 0:02:40.8]}
10. a3 {[%clk 0:02:42.6]} 10... Bg4 {[%clk 0:02:37.3]} 11. h3 {[%clk 0:02:41.9]}
11... Bd7 {[%clk 0:02:36.1]} 12. b4 {[%clk 0:02:37.1]} 12... cxb4 {[%clk
0:02:35.4]} 13. axb4 {[%clk 0:02:37.4]} 13... Bxb4 {[%clk 0:02:35.7]} 14. Ba3
{[%clk 0:02:37.2]} 14... Bxa3 {[%clk 0:02:33.2]} 15. Rxa3 {[%clk 0:02:37.2]}
15... Qe7 {[%clk 0:02:34.1]} 16. Qa1 {[%clk 0:02:36.8]} 16... a6 {[%clk
0:02:32.7]} 17. Rb1 {[%clk 0:02:36.7]} 17... Bc8 {[%clk 0:02:30]} 18. g4 {[%clk
0:02:22.9]} 18... Nd7 {[%clk 0:02:29.5]} 19. Ng3 {[%clk 0:02:21.7]} 19... g6
{[%clk 0:02:29.6]} 20. g5 {[%clk 0:02:16.9]} 20... Nc5 {[%clk 0:02:26.8]} 21. h4
{[%clk 0:02:08]} 21... f5 {[%clk 0:02:17.7]} 22. exf5 {[%clk 0:02:02.3]} 22...
gxf5 {[%clk 0:02:15.9]} 23. Re1 {[%clk 0:02:01.2]} 23... f4 {[%clk 0:02:08.1]}
24. Nh5 {[%clk 0:01:48.2]} 24... Bf5 {[%clk 0:02:06.9]} 25. Nf6+ {[%clk
0:01:41.3]} 25... Kh8 {[%clk 0:02:02.7]} 26. Nxe5 {[%clk 0:01:41.2]} 26... Nxe5
{[%clk 0:01:58.9]} 27. Qxd4 {[%clk 0:01:40.5]} 27... Nf3+ {[%clk 0:01:44.7]} 28.
Bxf3 {[%clk 0:01:40.4]} 28... Qxe1+ {[%clk 0:01:44.7]} 29. Kg2 {[%clk
0:01:40.6]} 29... Ne6 {[%clk 0:01:40.9]} 30. Qb2 {[%clk 0:01:34.7]} 30... Ng7
{[%clk 0:01:37.3]} 31. Nh5 {[%clk 0:01:22.3]} 31... Rf7 {[%clk 0:01:33.1]} 32.
Rb3 {[%clk 0:01:17.9]} 32... Rb8 {[%clk 0:00:58.6]} 33. c5 {[%clk 0:01:01.5]}
33... Qe6 {[%clk 0:00:52.6]} 34. c6 {[%clk 0:00:54.6]} 34... b5 {[%clk
0:00:50.1]} 35. Ra3 {[%clk 0:00:32.3]} 35... Bg4 {[%clk 0:00:49.5]} 36. Nxg7
{[%clk 0:00:05.2]} 36... Bxf3+ {[%clk 0:00:49.1]} 37. Kxf3 {[%clk 0:00:05.5]}
37... Qxc6+ {[%clk 0:00:49.4]} 38. Kg4 {[%clk 0:00:04.7]} 38... Rxg7 {[%clk
0:00:49.8]} 39. Qe5 {[%clk 0:00:02.4]} 39... Re8 {[%clk 0:00:48.4]} 40. Qxf4
{[%clk 0:00:02]} 40... Qe6+ {[%clk 0:00:48.6]} 41. Kg3 {[%clk 0:00:01.9]} 41...
Rf7 {[%clk 0:00:48.9]} 42. Qd4+ {[%clk 0:00:01.7]} 42... Qe5+ {[%clk 0:00:49.2]}
43. Qxe5+ {[%clk 0:00:01.7]} 43... Rxe5 {[%clk 0:00:50.1]} 44. Rxa6 {[%clk
0:00:01.9]} 44... Rd7 {[%clk 0:00:50.3]} 45. Ra8+ {[%clk 0:00:01.8]} 45... Kg7
{[%clk 0:00:49.8]} 46. Ra3 {[%clk 0:00:02.3]} 46... Red5 {[%clk 0:00:49.3]} 47.
Ra6 {[%clk 0:00:01.8]} 47... Rxd3+ {[%clk 0:00:48.9]} 0-1

[Event "Early-Titled-Tuesday-Blitz-May-28-2024"]
[Site "Chess.com"]
[Date "2024.05.28"]
[Round "1"]
[White "TrahtarBelarus"]
[Black "NikFil2013"]
[Result "1-0"]
[WhiteElo "2809"]
[BlackElo "2456"]
[TimeControl "180+1"]
[EndTime "8:07:11 PDT"]
[Termination "TrahtarBelarus won by resignation"]

1. c4 {[%clk 0:02:54.8]} 1... e6 {[%clk 0:03:00]} 2. Nf3 {[%clk 0:02:54]} 2...
d5 {[%clk 0:03:00.2]} 3. g3 {[%clk 0:02:54.7]} 3... Nf6 {[%clk 0:03:00.2]} 4.
Bg2 {[%clk 0:02:55.4]} 4... Be7 {[%clk 0:02:59.2]} 5. O-O {[%clk 0:02:55.2]}
5... O-O {[%clk 0:02:59.4]} 6. b3 {[%clk 0:02:53.5]} 6... c5 {[%clk 0:02:58.4]}
7. Bb2 {[%clk 0:02:50.2]} 7... d4 {[%clk 0:02:58.3]} 8. b4 {[%clk 0:02:50.7]}
8... Nc6 {[%clk 0:02:51.3]} 9. b5 {[%clk 0:02:48.7]} 9... Nb8 {[%clk 0:02:33.1]}
10. e3 {[%clk 0:02:48.4]} 10... dxe3 {[%clk 0:02:26.4]} 11. dxe3 {[%clk
0:02:49.3]} 11... Nbd7 {[%clk 0:02:24.9]} 12. a4 {[%clk 0:02:41.9]} 12... a6
{[%clk 0:02:14.1]} 13. Nbd2 {[%clk 0:02:28]} 13... Qc7 {[%clk 0:02:07.9]} 14.
Qc2 {[%clk 0:02:24.8]} 14... Rd8 {[%clk 0:01:58.8]} 15. Bc3 {[%clk 0:02:09]}
15... a5 {[%clk 0:01:39.8]} 16. Nb3 {[%clk 0:01:36.6]} 16... Ra7 {[%clk
0:01:17]} 17. Rfd1 {[%clk 0:01:35.3]} 17... b6 {[%clk 0:01:14.2]} 18. Nbd2
{[%clk 0:01:10.4]} 18... Bb7 {[%clk 0:01:12.3]} 19. e4 {[%clk 0:00:42.2]} 19...
e5 {[%clk 0:00:35.3]} 20. Nh4 {[%clk 0:00:29.9]} 20... g6 {[%clk 0:00:30.3]} 21.
Bh3 {[%clk 0:00:25.6]} 21... Raa8 {[%clk 0:00:24.4]} 22. Ng2 {[%clk 0:00:24.7]}
22... Rab8 {[%clk 0:00:18.6]} 23. Ne3 {[%clk 0:00:24.9]} 23... Kg7 {[%clk
0:00:17.2]} 24. Nd5 {[%clk 0:00:25.3]} 24... Bxd5 {[%clk 0:00:16.6]} 25. exd5
{[%clk 0:00:25.7]} 25... Bd6 {[%clk 0:00:16.4]} 26. Rf1 {[%clk 0:00:22.2]} 26...
Re8 {[%clk 0:00:16.4]} 27. Rae1 {[%clk 0:00:22.8]} 27... Kg8 {[%clk 0:00:14.2]}
28. f3 {[%clk 0:00:18.8]} 28... Rbd8 {[%clk 0:00:10.4]} 29. Ne4 {[%clk 0:00:19]}
29... Nxe4 {[%clk 0:00:09.9]} 30. fxe4 {[%clk 0:00:19.9]} 30... Nf8 {[%clk
0:00:08.7]} 31. Rf2 {[%clk 0:00:19.6]} 31... Kg7 {[%clk 0:00:08.2]} 32. Ref1
{[%clk 0:00:20.2]} 32... Re7 {[%clk 0:00:08.8]} 33. Bd2 {[%clk 0:00:20.1]} 33...
h6 {[%clk 0:00:08.5]} 34. Qc1 {[%clk 0:00:20.6]} 34... h5 {[%clk 0:00:04.8]} 35.
Bg5 {[%clk 0:00:20.7]} 35... Rdd7 {[%clk 0:00:03.9]} 36. Bf6+ {[%clk 0:00:21.1]}
36... Kg8 {[%clk 0:00:03.6]} 37. Qh6 {[%clk 0:00:21.2]} 1-0

[Event "Early-Titled-Tuesday-Blitz-May-28-2024"]
[Site "Chess.com"]
[Date "2024.05.28"]
[Round "1"]
[White "InitiatingASC"]
[Black "Cayse"]
[Result "0-1"]
[WhiteElo "2444"]
[BlackElo "2792"]
[TimeControl "180+1"]
[EndTime "8:07:12 PDT"]
[Termination "Cayse won on time"]

1. d4 {[%clk 0:03:00.5]} 1... d5 {[%clk 0:02:59]} 2. c4 {[%clk 0:03:00.2]} 2...
Nf6 {[%clk 0:02:56.5]} 3. Nc3 {[%clk 0:02:59.7]} 3... g6 {[%clk 0:02:56.4]} 4.
cxd5 {[%clk 0:02:56.4]} 4... Nxd5 {[%clk 0:02:54.7]} 5. e4 {[%clk 0:02:57.2]}
5... Nxc3 {[%clk 0:02:53]} 6. bxc3 {[%clk 0:02:58.1]} 6... Bg7 {[%clk
0:02:53.3]} 7. Bc4 {[%clk 0:02:48.6]} 7... c5 {[%clk 0:02:51.7]} 8. Ne2 {[%clk
0:02:45.8]} 8... O-O {[%clk 0:02:49.8]} 9. O-O {[%clk 0:02:44.7]} 9... Qc7
{[%clk 0:02:50]} 10. Bb3 {[%clk 0:02:37.1]} 10... Nc6 {[%clk 0:02:43.8]} 11. Be3
{[%clk 0:02:33.8]} 11... Rd8 {[%clk 0:02:36.5]} 12. Rc1 {[%clk 0:02:26]} 12...
e6 {[%clk 0:02:26.3]} 13. f3 {[%clk 0:02:00.1]} 13... b6 {[%clk 0:02:23.4]} 14.
Qe1 {[%clk 0:02:00.2]} 14... Na5 {[%clk 0:02:23]} 15. Qg3 {[%clk 0:01:50.3]}
15... Qxg3 {[%clk 0:02:21.7]} 16. hxg3 {[%clk 0:01:50.4]} 16... Ba6 {[%clk
0:02:21.1]} 17. Rf2 {[%clk 0:01:41.6]} 17... Rac8 {[%clk 0:02:07.7]} 18. Rd1
{[%clk 0:01:39.4]} 18... h5 {[%clk 0:01:49.4]} 19. Bg5 {[%clk 0:01:26]} 19...
Rd7 {[%clk 0:01:42.2]} 20. Ba4 {[%clk 0:01:19.6]} 20... b5 {[%clk 0:01:42]} 21.
Bb3 {[%clk 0:01:16.1]} 21... Nxb3 {[%clk 0:01:36.4]} 22. axb3 {[%clk 0:01:14.9]}
22... b4 {[%clk 0:01:37]} 23. c4 {[%clk 0:01:08.8]} 23... cxd4 {[%clk
0:01:35.1]} 24. Nc1 {[%clk 0:00:54.5]} 24... d3 {[%clk 0:00:44]} 25. Ra2 {[%clk
0:00:54]} 25... Bxc4 {[%clk 0:00:27.2]} 26. bxc4 {[%clk 0:00:44.6]} 26... Rxc4
{[%clk 0:00:27.8]} 27. Rad2 {[%clk 0:00:19.5]} 27... Bd4+ {[%clk 0:00:17.2]} 28.
Kh2 {[%clk 0:00:18]} 28... f6 {[%clk 0:00:17.1]} 29. Bh6 {[%clk 0:00:10.8]}
29... Kh7 {[%clk 0:00:15.7]} 30. Bf4 {[%clk 0:00:08.2]} 30... g5 {[%clk
0:00:10.7]} 31. Bxg5 {[%clk 0:00:02.7]} 31... fxg5 {[%clk 0:00:10.1]} 32. Nxd3
{[%clk 0:00:02.5]} 32... Be3 {[%clk 0:00:09.4]} 33. Re2 {[%clk 0:00:02.1]} 33...
Bb6 {[%clk 0:00:09.3]} 0-1

[Event "Early-Titled-Tuesday-Blitz-May-28-2024"]
[Site "Chess.com"]
[Date "2024.05.28"]
[Round "1"]
[White "Zhigalko_Sergei"]
[Black "nikitakhoroshev"]
[Result "1-0"]
[WhiteElo "2892"]
[BlackElo "2499"]
[TimeControl "180+1"]
[EndTime "8:07:15 PDT"]
[Termination "Zhigalko_Sergei won by checkmate"]

1. e4 {[%clk 0:03:00.9]} 1... e5 {[%clk 0:02:59.5]} 2. Nf3 {[%clk 0:03:00.5]}
2... Nc6 {[%clk 0:02:59.4]} 3. Bc4 {[%clk 0:03:00.5]} 3... Nf6 {[%clk
0:02:58.2]} 4. d3 {[%clk 0:03:00.6]} 4... Be7 {[%clk 0:02:57.9]} 5. O-O {[%clk
0:03:00.4]} 5... d6 {[%clk 0:02:57.8]} 6. c3 {[%clk 0:03:00]} 6... Na5 {[%clk
0:02:55.7]} 7. Bb5+ {[%clk 0:02:59.5]} 7... c6 {[%clk 0:02:54.3]} 8. Ba4 {[%clk
0:02:59.8]} 8... b5 {[%clk 0:02:54.4]} 9. Bc2 {[%clk 0:03:00.3]} 9... c5 {[%clk
0:02:54.3]} 10. Nbd2 {[%clk 0:03:00.2]} 10... O-O {[%clk 0:02:53.2]} 11. Re1
{[%clk 0:02:57.8]} 11... Re8 {[%clk 0:02:51]} 12. Nf1 {[%clk 0:02:57.8]} 12...
Bf8 {[%clk 0:02:50.5]} 13. Bg5 {[%clk 0:02:56]} 13... h6 {[%clk 0:02:48.7]} 14.
Bh4 {[%clk 0:02:56.3]} 14... Nc6 {[%clk 0:02:47.6]} 15. Bb3 {[%clk 0:02:54.8]}
15... Be6 {[%clk 0:02:46.9]} 16. Ne3 {[%clk 0:02:54.7]} 16... Be7 {[%clk
0:02:34.3]} 17. a4 {[%clk 0:02:48.3]} 17... b4 {[%clk 0:02:30.9]} 18. Bxf6
{[%clk 0:02:46.3]} 18... Bxf6 {[%clk 0:02:30.2]} 19. Bd5 {[%clk 0:02:46.1]}
19... Rc8 {[%clk 0:02:27.6]} 20. h3 {[%clk 0:02:36.1]} 20... Qd7 {[%clk
0:02:27]} 21. a5 {[%clk 0:02:28.7]} 21... Ne7 {[%clk 0:02:18.5]} 22. Bb3 {[%clk
0:02:06.6]} 22... d5 {[%clk 0:02:11.1]} 23. exd5 {[%clk 0:02:04.3]} 23... Bxd5
{[%clk 0:01:59.5]} 24. Nxd5 {[%clk 0:02:03.8]} 24... Nxd5 {[%clk 0:01:57.4]} 25.
Ba4 {[%clk 0:02:04.4]} 25... Qd6 {[%clk 0:01:54.1]} 26. Bxe8 {[%clk 0:02:04.5]}
26... Rxe8 {[%clk 0:01:51.9]} 27. c4 {[%clk 0:01:36.6]} 27... Nf4 {[%clk
0:01:50.6]} 28. Re3 {[%clk 0:01:37.2]} 28... Rd8 {[%clk 0:01:49.5]} 29. Qc2
{[%clk 0:01:28.5]} 29... Ng6 {[%clk 0:01:22.7]} 30. Nd2 {[%clk 0:01:25.3]} 30...
Bg5 {[%clk 0:01:16.1]} 31. Ne4 {[%clk 0:01:24.6]} 31... Qd4 {[%clk 0:01:14.7]}
32. Nxg5 {[%clk 0:01:18]} 32... hxg5 {[%clk 0:01:14.8]} 33. g3 {[%clk
0:01:14.7]} 33... f6 {[%clk 0:01:13.1]} 34. Rd1 {[%clk 0:01:01.6]} 34... a6
{[%clk 0:01:12.3]} 35. Re4 {[%clk 0:00:59.9]} 35... Qd6 {[%clk 0:01:10.5]} 36.
Qe2 {[%clk 0:00:59.8]} 36... Ne7 {[%clk 0:01:00.8]} 37. h4 {[%clk 0:00:59.3]}
37... gxh4 {[%clk 0:00:55.3]} 38. Rxh4 {[%clk 0:00:57.1]} 38... Nf5 {[%clk
0:00:55.1]} 39. Re4 {[%clk 0:00:31.3]} 39... Nd4 {[%clk 0:00:52.2]} 40. Qh5
{[%clk 0:00:30.5]} 40... Qc6 {[%clk 0:00:48.8]} 41. Kf1 {[%clk 0:00:25.8]} 41...
Qa8 {[%clk 0:00:31.4]} 42. f4 {[%clk 0:00:24.4]} 42... Nc6 {[%clk 0:00:26.8]}
43. Kf2 {[%clk 0:00:20.6]} 43... Rd4 {[%clk 0:00:21.1]} 44. Rh1 {[%clk
0:00:18.7]} 44... Qb7 {[%clk 0:00:19.5]} 45. Qe8# {[%clk 0:00:18.2]} 1-0

[Event "Early-Titled-Tuesday-Blitz-May-28-2024"]
[Site "Chess.com"]
[Date "2024.05.28"]
[Round "1"]
[White "Diego_FloresQ"]
[Black "JanMur7"]
[Result "1-0"]
[WhiteElo "2604"]
[BlackElo "2257"]
[TimeControl "180+1"]
[EndTime "8:07:16 PDT"]
[Termination "Diego_FloresQ won by resignation"]

1. d4 {[%clk 0:03:00.4]} 1... Nf6 {[%clk 0:02:59.5]} 2. Bf4 {[%clk 0:03:00.1]}
2... c6 {[%clk 0:02:59.1]} 3. Nd2 {[%clk 0:03:00.4]} 3... Qb6 {[%clk 0:02:58.9]}
4. Nb3 {[%clk 0:02:58.4]} 4... a5 {[%clk 0:02:58.5]} 5. a4 {[%clk 0:02:58.4]}
5... d5 {[%clk 0:02:48.9]} 6. e3 {[%clk 0:02:54.9]} 6... Bf5 {[%clk 0:02:48]} 7.
Nf3 {[%clk 0:02:52.7]} 7... Nbd7 {[%clk 0:02:43.9]} 8. h3 {[%clk 0:02:50.5]}
8... e6 {[%clk 0:02:42.3]} 9. Be2 {[%clk 0:02:49.8]} 9... Be7 {[%clk 0:02:38.3]}
10. O-O {[%clk 0:02:48.9]} 10... O-O {[%clk 0:02:38]} 11. Nfd2 {[%clk
0:02:37.6]} 11... c5 {[%clk 0:02:32.4]} 12. dxc5 {[%clk 0:02:35.3]} 12... Nxc5
{[%clk 0:02:32.3]} 13. Nxc5 {[%clk 0:02:31.6]} 13... Qxc5 {[%clk 0:02:29.8]} 14.
c4 {[%clk 0:02:29.6]} 14... Rfd8 {[%clk 0:02:22]} 15. Qb3 {[%clk 0:02:28.8]}
15... Qb4 {[%clk 0:02:14.2]} 16. Qxb4 {[%clk 0:02:25.7]} 16... Bxb4 {[%clk
0:02:11.6]} 17. Nf3 {[%clk 0:02:26]} 17... dxc4 {[%clk 0:02:06.9]} 18. Bxc4
{[%clk 0:02:26.9]} 18... Rac8 {[%clk 0:02:06.4]} 19. b3 {[%clk 0:02:26.5]} 19...
h6 {[%clk 0:01:58]} 20. Nd4 {[%clk 0:02:17.2]} 20... Be4 {[%clk 0:01:50.2]} 21.
Nb5 {[%clk 0:02:14.6]} 21... Rd2 {[%clk 0:01:31.9]} 22. f3 {[%clk 0:02:05.8]}
22... Bd3 {[%clk 0:01:31.3]} 23. Rfc1 {[%clk 0:01:50.3]} 23... Bxc4 {[%clk
0:01:10]} 24. bxc4 {[%clk 0:01:50.1]} 24... Rcd8 {[%clk 0:01:07.9]} 25. c5
{[%clk 0:01:46.4]} 25... Nd5 {[%clk 0:01:00.3]} 26. Nd6 {[%clk 0:01:35.3]} 26...
Nxf4 {[%clk 0:00:53.9]} 27. exf4 {[%clk 0:01:35.4]} 27... Bxc5+ {[%clk
0:00:49.7]} 28. Rxc5 {[%clk 0:01:35.1]} 28... R8xd6 {[%clk 0:00:19.1]} 29. Rxa5
{[%clk 0:01:32.2]} 29... Rb2 {[%clk 0:00:18.3]} 30. Kh2 {[%clk 0:01:30.6]} 30...
Rdd2 {[%clk 0:00:17.7]} 31. Rg1 {[%clk 0:01:31]} 31... Ra2 {[%clk 0:00:15.5]}
32. h4 {[%clk 0:01:29.9]} 32... h5 {[%clk 0:00:14.8]} 33. Rxh5 {[%clk
0:01:27.9]} 33... Rxa4 {[%clk 0:00:12.8]} 34. Kg3 {[%clk 0:01:27.7]} 34... g6
{[%clk 0:00:09.6]} 35. Rb5 {[%clk 0:01:25.7]} 35... Rd7 {[%clk 0:00:10]} 36.
Rgb1 {[%clk 0:01:23.8]} 36... Ra7 {[%clk 0:00:10.5]} 37. Kg4 {[%clk 0:01:22.8]}
37... Kg7 {[%clk 0:00:10.1]} 38. h5 {[%clk 0:01:21]} 38... gxh5+ {[%clk
0:00:10]} 39. Kxh5 {[%clk 0:01:21.9]} 39... Rd5+ {[%clk 0:00:07]} 40. Rxd5
{[%clk 0:01:21.2]} 40... exd5 {[%clk 0:00:07.9]} 41. Rb5 {[%clk 0:01:21.5]}
41... d4 {[%clk 0:00:06.7]} 42. Rd5 {[%clk 0:01:20.1]} 42... Ra4 {[%clk
0:00:06.4]} 43. Kg5 {[%clk 0:01:20.3]} 43... Rb4 {[%clk 0:00:04.6]} 44. Kf5
{[%clk 0:01:20.2]} 44... b5 {[%clk 0:00:02.8]} 45. g3 {[%clk 0:01:19.1]} 45...
Rb3 {[%clk 0:00:02.6]} 46. Kg4 {[%clk 0:01:16.1]} 46... d3 {[%clk 0:00:01.9]}
47. f5 {[%clk 0:01:16.7]} 47... Kf6 {[%clk 0:00:01.3]} 48. f4 {[%clk 0:01:15.7]}
48... b4 {[%clk 0:00:02.2]} 49. Rd6+ {[%clk 0:01:13.9]} 49... Ke7 {[%clk
0:00:02.2]} 50. Rd4 {[%clk 0:01:14.8]} 50... Rc3 {[%clk 0:00:01.2]} 51. Rxb4
{[%clk 0:01:14.3]} 51... d2 {[%clk 0:00:02.1]} 52. Rd4 {[%clk 0:01:14.7]} 52...
Rc2 {[%clk 0:00:03]} 53. Kg5 {[%clk 0:01:14.1]} 53... Ra2 {[%clk 0:00:03]} 54.
g4 {[%clk 0:01:13.5]} 54... f6+ {[%clk 0:00:02.7]} 55. Kg6 {[%clk 0:01:13.6]}
55... Rb2 {[%clk 0:00:01.5]} 56. g5 {[%clk 0:01:13.5]} 56... fxg5 {[%clk
0:00:01.4]} 57. fxg5 {[%clk 0:01:14.4]} 57... Rb6+ {[%clk 0:00:01.2]} 58. f6+
{[%clk 0:01:14.9]} 58... Ke6 {[%clk 0:00:01]} 59. Rxd2 {[%clk 0:01:15.8]} 59...
Rd6 {[%clk 0:00:01.1]} 1-0

[Event "Early-Titled-Tuesday-Blitz-May-28-2024"]
[Site "Chess.com"]
[Date "2024.05.28"]
[Round "1"]
[White "penguingm1"]
[Black "Attacker_2006"]
[Result "1-0"]
[WhiteElo "2978"]
[BlackElo "2520"]
[TimeControl "180+1"]
[EndTime "8:07:21 PDT"]
[Termination "penguingm1 won by resignation"]

1. d4 {[%clk 0:02:59.2]} 1... Nf6 {[%clk 0:02:56.1]} 2. c4 {[%clk 0:02:58.7]}
2... e6 {[%clk 0:02:55]} 3. Nc3 {[%clk 0:02:58.9]} 3... Bb4 {[%clk 0:02:54]} 4.
Qc2 {[%clk 0:02:59.3]} 4... d6 {[%clk 0:02:53.4]} 5. Nf3 {[%clk 0:02:58.1]} 5...
Nbd7 {[%clk 0:02:52]} 6. g3 {[%clk 0:02:56.3]} 6... O-O {[%clk 0:02:50.9]} 7.
Bg2 {[%clk 0:02:54.3]} 7... c5 {[%clk 0:02:48.1]} 8. O-O {[%clk 0:02:52.4]} 8...
Rb8 {[%clk 0:02:43]} 9. Rd1 {[%clk 0:02:51.5]} 9... Qe7 {[%clk 0:02:37.4]} 10.
dxc5 {[%clk 0:00:53.2]} 10... Nxc5 {[%clk 0:02:33.9]} 11. Nb5 {[%clk 0:00:52.8]}
11... Nce4 {[%clk 0:02:19.3]} 12. Nfd4 {[%clk 0:00:35]} 12... d5 {[%clk
0:02:16.6]} 13. Nxa7 {[%clk 0:00:14.7]} 13... Bc5 {[%clk 0:02:10.2]} 14. Nxc8
{[%clk 0:00:12.2]} 14... Rfxc8 {[%clk 0:02:09.9]} 15. Be3 {[%clk 0:00:10.9]}
15... e5 {[%clk 0:02:09.6]} 16. Nf5 {[%clk 0:00:11.1]} 16... Qe6 {[%clk
0:02:08]} 17. Bxc5 {[%clk 0:00:10.5]} 17... Rxc5 {[%clk 0:02:08.7]} 18. Ne3
{[%clk 0:00:09.6]} 18... d4 {[%clk 0:02:06.6]} 19. Nd5 {[%clk 0:00:05.6]} 19...
Nd6 {[%clk 0:01:56.4]} 20. Nxf6+ {[%clk 0:00:04.4]} 20... Qxf6 {[%clk
0:01:57.3]} 21. b3 {[%clk 0:00:04.6]} 21... b5 {[%clk 0:01:55]} 22. Bd5 {[%clk
0:00:04.8]} 22... Rbc8 {[%clk 0:01:53.1]} 23. Qd3 {[%clk 0:00:04.1]} 23... bxc4
{[%clk 0:01:53.5]} 24. bxc4 {[%clk 0:00:05]} 24... Nxc4 {[%clk 0:01:50.6]} 25.
Rdc1 {[%clk 0:00:04]} 25... Nd6 {[%clk 0:01:35.9]} 26. Rxc5 {[%clk 0:00:04]}
26... Rxc5 {[%clk 0:01:36.8]} 27. Qb3 {[%clk 0:00:04.6]} 27... h5 {[%clk
0:01:33.8]} 28. a4 {[%clk 0:00:04.7]} 28... e4 {[%clk 0:01:26.2]} 29. Rd1 {[%clk
0:00:04.7]} 29... Qe5 {[%clk 0:01:22.8]} 30. Bb7 {[%clk 0:00:03.2]} 30... Rc3
{[%clk 0:01:23.3]} 31. Qb4 {[%clk 0:00:03.3]} 31... e3 {[%clk 0:01:23.9]} 32. f4
{[%clk 0:00:02.5]} 32... Qe7 {[%clk 0:01:19.3]} 33. Qxd4 {[%clk 0:00:03.1]}
33... Nxb7 {[%clk 0:00:53]} 34. Qxc3 {[%clk 0:00:02.9]} 34... h4 {[%clk
0:00:53.7]} 35. Qc8+ {[%clk 0:00:03.1]} 35... Kh7 {[%clk 0:00:54.3]} 36. Qh3
{[%clk 0:00:02.8]} 36... g5 {[%clk 0:00:45]} 37. fxg5 {[%clk 0:00:03]} 37... Nd6
{[%clk 0:00:33.7]} 38. Qxh4+ {[%clk 0:00:03.4]} 38... Kg8 {[%clk 0:00:27.9]} 39.
g6 {[%clk 0:00:04]} 39... Qe6 {[%clk 0:00:25.6]} 40. Rxd6 {[%clk 0:00:03.6]}
40... Qxg6 {[%clk 0:00:21.5]} 41. Rxg6+ {[%clk 0:00:03.3]} 41... fxg6 {[%clk
0:00:22]} 42. a5 {[%clk 0:00:04.1]} 1-0

[Event "Early-Titled-Tuesday-Blitz-May-28-2024"]
[Site "Chess.com"]
[Date "2024.05.28"]
[Round "1"]
[White "Semetey"]
[Black "FairChess_on_YouTube"]
[Result "0-1"]
[WhiteElo "2545"]
[BlackElo "3079"]
[TimeControl "180+1"]
[EndTime "8:07:22 PDT"]
[Termination "FairChess_on_YouTube won on time"]

1. Nc3 {[%clk 0:02:57.2]} 1... d5 {[%clk 0:02:46.8]} 2. e4 {[%clk 0:02:54.5]}
2... dxe4 {[%clk 0:02:46.1]} 3. Nxe4 {[%clk 0:02:54.3]} 3... Nf6 {[%clk
0:02:46.7]} 4. Nxf6+ {[%clk 0:02:48.3]} 4... exf6 {[%clk 0:02:47.6]} 5. d4
{[%clk 0:02:48.3]} 5... Bd6 {[%clk 0:02:46.8]} 6. Bd3 {[%clk 0:02:48.3]} 6...
O-O {[%clk 0:02:45.8]} 7. Ne2 {[%clk 0:02:48.4]} 7... Re8 {[%clk 0:02:36.4]} 8.
h3 {[%clk 0:02:47.4]} 8... c5 {[%clk 0:02:24.6]} 9. dxc5 {[%clk 0:02:45.7]} 9...
Qa5+ {[%clk 0:02:18.1]} 10. c3 {[%clk 0:02:41.6]} 10... Qxc5 {[%clk 0:02:17.7]}
11. O-O {[%clk 0:02:41.7]} 11... Nc6 {[%clk 0:02:15.7]} 12. Qc2 {[%clk
0:02:29.7]} 12... g6 {[%clk 0:02:03]} 13. Be3 {[%clk 0:02:28.2]} 13... Qh5
{[%clk 0:01:51.7]} 14. Nf4 {[%clk 0:02:19.9]} 14... Qe5 {[%clk 0:01:29.5]} 15.
Rfe1 {[%clk 0:02:13.5]} 15... Qa5 {[%clk 0:01:03.8]} 16. Rad1 {[%clk 0:02:03.1]}
16... Bf8 {[%clk 0:00:59.9]} 17. b4 {[%clk 0:02:00.4]} 17... Qc7 {[%clk
0:00:45]} 18. Nd5 {[%clk 0:01:57.3]} 18... Qd8 {[%clk 0:00:44.9]} 19. Bb5 {[%clk
0:01:29.9]} 19... Bf5 {[%clk 0:00:41.2]} 20. Qa4 {[%clk 0:01:28.7]} 20... Be6
{[%clk 0:00:37.1]} 21. Nb6 {[%clk 0:01:16.8]} 21... axb6 {[%clk 0:00:38]} 22.
Rxd8 {[%clk 0:01:16.2]} 22... Rexd8 {[%clk 0:00:38.9]} 23. Qc2 {[%clk
0:01:00.4]} 23... Rxa2 {[%clk 0:00:39.1]} 24. Qe4 {[%clk 0:01:00.6]} 24... Bf5
{[%clk 0:00:36.5]} 25. Qh4 {[%clk 0:00:59.4]} 25... Re8 {[%clk 0:00:30.9]} 26.
Rc1 {[%clk 0:00:50.8]} 26... Re4 {[%clk 0:00:24.5]} 27. Qg3 {[%clk 0:00:41.9]}
27... Ne5 {[%clk 0:00:24.7]} 28. Bxb6 {[%clk 0:00:38.7]} 28... h5 {[%clk
0:00:23.9]} 29. Bd4 {[%clk 0:00:26.7]} 29... h4 {[%clk 0:00:20.9]} 30. Qh2
{[%clk 0:00:27.1]} 30... Bh6 {[%clk 0:00:21.4]} 31. Rf1 {[%clk 0:00:25.9]} 31...
Bf4 {[%clk 0:00:21.3]} 32. Qh1 {[%clk 0:00:23.7]} 32... Rd2 {[%clk 0:00:17.1]}
33. Be3 {[%clk 0:00:10.5]} 33... Rxe3 {[%clk 0:00:12]} 34. fxe3 {[%clk
0:00:11.4]} 34... Bxe3+ {[%clk 0:00:11.8]} 35. Kh2 {[%clk 0:00:11.8]} 35... Be4
{[%clk 0:00:12.5]} 0-1